[Event "POL-chT 2 Liga 2019"]
[Site "Poronin"]
[Date "2019.09.14"]
[Round "8.46"]
[White "Markiewicz, Mateusz"]
[Black "Butyrowski, Marcel"]
[Result "1-0"]
[ECO "B20"]
[WhiteElo "2024"]
[BlackElo "1873"]
[Annotator "NA"]
[PlyCount "85"]
[EventDate "2019.09.07"]
[EventType "team-tourn"]
[EventCountry "POL"]
[SourceTitle "playchess.com"]
[Source "ChessBase"]
[SourceQuality "1"]
[TimeControl "40/5400+30:1800+30"]

1. e4 {[%emt 0:08:25]} c5 {[%emt 0:00:00]} 2. g3 {[%emt 0:00:04]} Nc6 {[%emt 0:00:24]} 3. Bg2 {[%emt 0:00:29]} g6 {[%emt 0:00:57]} 4. f4 {[%emt 0:00:18]} Bg7 {[%emt 0:00:39]} 5. Nf3 {[%emt 0:01:10]} d6 {[%emt 0:01:11]} 6. c3 {[%emt 0:01:04]} Nf6 {[%emt 0:03:21]} 7. d3 {[%emt 0:00:14]} O-O {[%emt 0:01:54]} 8. O-O {[%emt 0:00:07]} c4 {[%emt 0:03:33]} 9. Na3 {[%emt 0:03:40]} cxd3 {[%emt 0:04:06]} 10. Qxd3 {[%emt 0:00:36]} Ng4 {[%emt 0:02:09]} 11. Kh1 {[%emt 0:02:10]} a6 {[%emt 0:01:54]} 12. h3 {[%emt 0:01:08]} Nf6 {[%emt 0:00:32]} 13. Be3 {[%emt 0:00:10]} Rb8 {[%emt 0:02:48]} 14. Rad1 {[%emt 0:04:46]} Qc7 {[%emt 0:04:02]} 15. Nd4 {[%emt 0:03:36]} Bd7 {[%emt 0:08:36]} 16. Bf2 {[%emt 0:15:51]} b5 {[%emt 0:02:12]} 17. Nac2 {[%emt 0:00:12]} Na5 {[%emt 0:02:10]} 18. Ne3 {[%emt 0:00:46]} Rfc8 {[%emt 0:05:56]} 19. Nd5 {[%emt 0:00:49]} Qd8 {[%emt 0:05:21]} 20. e5 {[%emt 0:07:26]} Nxd5 {[%emt 0:02:01]} 21. Bxd5 {[%emt 0:00:12]} Bxh3 {[%emt 0:04:38]} 22. e6 {[%emt 0:06:33]} f5 {[%emt 0:03:11]} 23. Rfe1 {[%emt 0:05:41]} Bg4 {[%emt 0:07:27]} 24. Rc1 {[%emt 0:02:26]} Qe8 {[%emt 0:03:09]} 25. Rc2 {[%emt 0:01:24]} Nc4 {[%emt 0:02:02]} 26. a4 {[%emt 0:01:02]} Nb6 {[%emt 0:00:30]} 27. Bg2 {[%emt 0:00:38]} Nxa4 {[%emt 0:00:34]} 28. Ra1 {[%emt 0:01:59]} a5 {[%emt 0:04:03]} 29. b4 {[%emt 0:14:16]} axb4 {[%emt 0:05:34]} 30. cxb4 {[%emt 0:00:02]} Rxc2 {[%emt 0:01:04]} 31. Qxc2 {[%emt 0:00:10]} Rc8 {[%emt 0:02:37]} 32. Qd3 {[%emt 0:00:01]} Nc3 {[%emt 0:03:18]} 33. Bb7 {[%emt 0:01:16]} Ne4 {[%emt 0:02:08]} 34. Kg1 {[%emt 0:02:35]} Nxf2 {[%emt 0:01:10]} 35. Kxf2 {[%emt 0:00:02]} Rb8 {[%emt 0:00:34]} 36. Ra7 {[%emt 0:02:51]} Qd8 {[%emt 0:02:27]} 37. Nc6 {[%emt 0:00:02]} Qb6+ {[%emt 0:00:45]} 38. Qe3 {[%emt 0:01:22]} Rxb7 {[%emt 0:01:30]} 39. Nxe7+ {[%emt 0:01:25]} Kf8 {[%emt 0:00:51]} 40. Nxg6+ {[%emt 0:00:00]} hxg6 {[%emt 0:00:00]} 41. e7+ {[%emt 0:01:46]} Ke8 {[%emt 0:08:47]} 42. Ra8+ {[%emt 0:00:15]} Rb8 {[%emt 0:00:20]} 43. Qxb6 {[%emt 0:00:35]} 1-0

[Event "POL-chT 2 Liga 2019"]
[Site "Poronin"]
[Date "2019.09.14"]
[Round "8.47"]
[White "Wojdak, Jan"]
[Black "Tatarczany, Piotr"]
[Result "1/2-1/2"]
[ECO "B93"]
[WhiteElo "1973"]
[BlackElo "1616"]
[Annotator "NA"]
[PlyCount "196"]
[EventDate "2019.09.07"]
[EventType "team-tourn"]
[EventCountry "POL"]
[SourceTitle "playchess.com"]
[Source "ChessBase"]
[SourceQuality "1"]
[TimeControl "40/5400+30:1800+30"]

1. e4 {[%emt 0:00:00]} c5 {[%emt 0:00:00]} 2. Nf3 {[%emt 0:00:00]} d6 {[%emt 0:00:00]} 3. d4 {[%emt 0:00:00]} cxd4 {[%emt 0:00:00]} 4. Nxd4 {[%emt 0:00:05]} Nf6 {[%emt 0:00:02]} 5. Nc3 {[%emt 0:00:11]} a6 {[%emt 0:00:07]} 6. f4 {[%emt 0:00:15]} Nbd7 {[%emt 0:00:25]} 7. Nf3 {[%emt 0:01:56]} e6 {[%emt 0:00:41]} 8. a4 {[%emt 0:02:49]} Be7 {[%emt 0:00:27]} 9. Bd3 {[%emt 0:00:27]} O-O {[%emt 0:01:50]} 10. O-O Qc7 {[%emt 0:00:30]} 11. Kh1 {[%emt 0:00:43]} b6 {[%emt 0:01:02]} 12. Qe1 {[%emt 0:01:24]} Bb7 {[%emt 0:00:42]} 13. Bd2 {[%emt 0:11:29]} Nc5 {[%emt 0:02:06]} 14. b4 {[%emt 0:00:13]} Nxd3 {[%emt 0:01:10]} 15. cxd3 {[%emt 0:00:06]} Rac8 {[%emt 0:01:17]} 16. Rc1 {[%emt 0:00:22]} Qd7 {[%emt 0:01:39]} 17. Qf2 {[%emt 0:05:24]} b5 {[%emt 0:03:11]} 18. axb5 {[%emt 0:05:53]} axb5 {[%emt 0:01:22]} 19. Nd4 {[%emt 0:05:02]} Bc6 {[%emt 0:05:01]} 20. Ra1 {[%emt 0:24:05]} Ra8 {[%emt 0:02:52]} 21. Rfc1 {[%emt 0:01:27]} Rxa1 {[%emt 0:07:30]} 22. Rxa1 {[%emt 0:00:01]} Rb8 {[%emt 0:02:03]} 23. Ra6 {[%emt 0:09:01]} Rc8 {[%emt 0:03:40]} 24. Nxc6 {[%emt 0:00:49]} Rxc6 {[%emt 0:00:12]} 25. Ra7 {[%emt 0:01:55]} Rc7 {[%emt 0:01:44]} 26. Rxc7 {[%emt 0:00:57]} Qxc7 {[%emt 0:00:08]} 27. Nxb5 {[%emt 0:07:55]} Ng4 {[%emt 0:10:39]} 28. Nxc7 {[%emt 0:11:22]} Nxf2+ {[%emt 0:00:24]} 29. Kg1 {[%emt 0:00:03]} Nxd3 {[%emt 0:00:36]} 30. Na6 {[%emt 0:01:18]} Bd8 {[%emt 0:02:39]} 31. Be3 {[%emt 0:00:05]} Nb2 {[%emt 0:00:37]} 32. Kf2 {[%emt 0:05:46]} Nc4 {[%emt 0:00:42]} 33. Ke2 {[%emt 0:03:03]} Kf8 {[%emt 0:00:35]} 34. Bd4 {[%emt 0:00:38]} f6 {[%emt 0:02:54]} 35. Kd3 {[%emt 0:00:12]} d5 {[%emt 0:01:35]} 36. exd5 {[%emt 0:01:05]} exd5 {[%emt 0:00:08]} 37. Bc5+ {[%emt 0:00:02]} Kf7 {[%emt 0:01:03]} 38. Kd4 {[%emt 0:00:10]} Ke6 {[%emt 0:00:23]} 39. f5+ {[%emt 0:00:05]} Kxf5 {[%emt 0:00:19]} 40. Kxd5 {[%emt 0:00:00]} Ne5 {[%emt 0:00:00]} 41. b5 {[%emt 0:07:45]} h5 {[%emt 0:06:24]} 42. b6 {[%emt 0:01:20]} Bxb6 {[%emt 0:00:15]} 43. Bxb6 {[%emt 0:00:05]} Ng4 {[%emt 0:00:46]} 44. Bg1 {[%emt 0:00:55]} g5 {[%emt 0:00:20]} 45. Nc5 {[%emt 0:00:33]} Ne5 {[%emt 0:01:06]} 46. Ne4 {[%emt 0:01:02]} h4 {[%emt 0:01:05]} 47. Nxf6 {[%emt 0:01:55]} Nd3 {[%emt 0:00:30]} 48. Nh5 {[%emt 0:09:52]} Ne1 {[%emt 0:01:34]} 49. Ng7+ {[%emt 0:06:10]} Kg4 {[%emt 0:03:46]} 50. Ke4 {[%emt 0:03:19]} Nxg2 {[%emt 0:00:25]} 51. Ne8 {[%emt 0:00:25]} Nf4 {[%emt 0:02:09]} 52. Nf6+ {[%emt 0:00:37]} Kh3 {[%emt 0:00:11]} 53. Kf3 {[%emt 0:01:22]} Ng2 {[%emt 0:01:15]} 54. Ne4 {[%emt 0:02:32]} g4+ {[%emt 0:03:47]} 55. Kf2 {[%emt 0:00:57]} g3+ {[%emt 0:00:30]} 56. hxg3 {[%emt 0:00:18]} hxg3+ {[%emt 0:00:11]} 57. Nxg3 {[%emt 0:00:47]} Nf4 {[%emt 0:00:31]} 58. Kf3 {[%emt 0:00:06]} Nd5 {[%emt 0:00:14]} 59. Nf5 {[%emt 0:00:18]} Nf6 {[%emt 0:01:32]} 60. Bf2 {[%emt 0:00:40]} Nd7 {[%emt 0:00:32]} 61. Bg3 {[%emt 0:00:17]} Nf6 {[%emt 0:02:14]} 62. Be5 {[%emt 0:01:23]} Nd7 {[%emt 0:01:14]} 63. Bd4 {[%emt 0:00:08]} Kh2 {[%emt 0:00:24]} 64. Ke4 {[%emt 0:00:07]} Kg2 {[%emt 0:00:55]} 65. Kd5 {[%emt 0:00:16]} Kf3 {[%emt 0:00:45]} 66. Ke6 {[%emt 0:01:27]} Ke4 {[%emt 0:00:34]} 67. Ba7 {[%emt 0:00:30]} Nf8+ {[%emt 0:00:21]} 68. Kf6 {[%emt 0:00:04]} Nd7+ {[%emt 0:00:12]} 69. Kg5 {[%emt 0:00:05]} Ke5 {[%emt 0:00:32]} 70. Bf2 {[%emt 0:00:38]} Ke4 {[%emt 0:00:16]} 71. Nd6+ {[%emt 0:00:07]} Kd5 {[%emt 0:00:15]} 72. Ne8 {[%emt 0:00:13]} Ke4 {[%emt 0:00:16]} 73. Bg3 {[%emt 0:00:14]} Kf3 {[%emt 0:00:29]} 74. Bd6 {[%emt 0:00:10]} Ke4 {[%emt 0:00:14]} 75. Nc7 {[%emt 0:00:05]} Ne5 {[%emt 0:00:20]} 76. Kf6 {[%emt 0:00:15]} Ng4+ {[%emt 0:00:15]} 77. Ke6 {[%emt 0:00:04]} Ne3 {[%emt 0:00:33]} 78. Na6 {[%emt 0:00:08]} Nc4 {[%emt 0:00:28]} 79. Bc5 {[%emt 0:00:04]} Ne3 {[%emt 0:00:14]} 80. Nb4 {[%emt 0:00:05]} Nc4 {[%emt 0:00:26]} 81. Nd5 {[%emt 0:00:25]} Nd2 {[%emt 0:00:38]} 82. Nf6+ {[%emt 0:00:08]} Kd3 {[%emt 0:00:24]} 83. Kd5 {[%emt 0:00:09]} Nb3 {[%emt 0:00:35]} 84. Bb6 {[%emt 0:00:05]} Nd2 {[%emt 0:00:19]} 85. Nd7 {[%emt 0:00:07]} Nb3 {[%emt 0:00:36]} 86. Ne5+ {[%emt 0:00:04]} Kc3 {[%emt 0:00:27]} 87. Bf2 {[%emt 0:00:18]} Kc2 {[%emt 0:00:54]} 88. Kc4 {[%emt 0:00:15]} Nd2+ {[%emt 0:00:20]} 89. Kb4 {[%emt 0:00:04]} Ne4 {[%emt 0:00:17]} 90. Be3 {[%emt 0:00:14]} Nd2 {[%emt 0:00:31]} 91. Bh6 {[%emt 0:00:14]} Ne4 {[%emt 0:00:16]} 92. Kc4 {[%emt 0:00:14]} Nd2+ {[%emt 0:00:20]} 93. Kb4 {[%emt 0:00:14]} Ne4 {[%emt 0:00:11]} 94. Ng4 {[%emt 0:00:14]} Kd3 {[%emt 0:00:15]} 95. Bg7 {[%emt 0:00:18]} Nd2 {[%emt 0:00:30]} 96. Bc3 {[%emt 0:00:09]} Ne4 {[%emt 0:00:18]} 97. Be1 {[%emt 0:00:09]} Ke2 {[%emt 0:00:19]} 98. Ne3 {[%emt 0:00:10]} Kxe3 {[%emt 0:00:15]} 1/2-1/2

[Event "POL-chT 2 Liga 2019"]
[Site "Poronin"]
[Date "2019.09.14"]
[Round "8.48"]
[White "Jalowiec, Halina"]
[Black "Szelag, Zuzanna"]
[Result "1/2-1/2"]
[ECO "B52"]
[WhiteElo "1842"]
[BlackElo "1824"]
[Annotator "NA"]
[PlyCount "42"]
[EventDate "2019.09.07"]
[EventType "team-tourn"]
[EventCountry "POL"]
[SourceTitle "playchess.com"]
[Source "ChessBase"]
[SourceQuality "1"]
[TimeControl "40/5400+30:1800+30"]

1. e4 {[%emt 0:00:00]} c5 {[%emt 0:00:00]} 2. Nf3 {[%emt 0:00:00]} d6 {[%emt 0:00:00]} 3. Bb5+ {[%emt 0:00:00]} Bd7 {[%emt 0:00:00]} 4. Bxd7+ {[%emt 0:00:00]} Qxd7 {[%emt 0:00:00]} 5. c4 {[%emt 0:00:03]} Nf6 {[%emt 0:00:11]} 6. Nc3 {[%emt 0:00:11]} g6 {[%emt 0:00:07]} 7. d4 {[%emt 0:01:19]} cxd4 {[%emt 0:00:14]} 8. Nxd4 {[%emt 0:00:11]} Bg7 {[%emt 0:00:40]} 9. f3 {[%emt 0:01:46]} O-O {[%emt 0:00:48]} 10. Be3 {[%emt 0:01:09]} e6 {[%emt 0:04:13]} 11. Qd2 {[%emt 0:21:25]} Rc8 {[%emt 0:12:52]} 12. Ndb5 {[%emt 0:07:38]} Ne8 {[%emt 0:09:02]} 13. Rd1 {[%emt 0:04:27]} Rxc4 {[%emt 0:05:56]} 14. Nxd6 {[%emt 0:01:48]} Nxd6 {[%emt 0:00:08]} 15. Qxd6 Qxd6 {[%emt 0:01:07]} 16. Rxd6 {[%emt 0:00:21]} Na6 {[%emt 0:03:25]} 17. Kd2 {[%emt 0:12:45]} Nc5 {[%emt 0:13:48]} 18. Bxc5 {[%emt 0:05:03]} Rxc5 {[%emt 0:00:04]} 19. Rd7 {[%emt 0:02:26]} b6 {[%emt 0:02:55]} 20. Kc2 {[%emt 0:05:47]} Rac8 {[%emt 0:06:44]} 21. Rd3 {[%emt 0:00:49]} Bf6 {[%emt 0:06:37]} 1/2-1/2

[Event "POL-chT 2 Liga 2019"]
[Site "Poronin"]
[Date "2019.09.14"]
[Round "8.49"]
[White "Kudas, Damian"]
[Black "Bobula, Mateusz"]
[Result "1/2-1/2"]
[ECO "D43"]
[WhiteElo "2115"]
[BlackElo "2326"]
[Annotator "NA"]
[PlyCount "47"]
[EventDate "2019.09.07"]
[EventType "team-tourn"]
[EventCountry "POL"]
[SourceTitle "playchess.com"]
[Source "ChessBase"]
[SourceQuality "1"]
[TimeControl "40/5400+30:1800+30"]

1. d4 {[%emt 0:00:00]} d5 {[%emt 0:00:00]} 2. c4 {[%emt 0:00:00]} c6 {[%emt 0:00:14]} 3. Nc3 {[%emt 0:00:00]} Nf6 {[%emt 0:00:18]} 4. Nf3 {[%emt 0:00:00]} e6 {[%emt 0:00:18]} 5. Bg5 {[%emt 0:00:02]} h6 {[%emt 0:00:38]} 6. Bxf6 {[%emt 0:00:18]} Qxf6 {[%emt 0:00:16]} 7. e3 {[%emt 0:00:09]} Nd7 {[%emt 0:00:27]} 8. Rc1 {[%emt 0:00:17]} Bd6 {[%emt 0:01:34]} 9. Be2 {[%emt 0:01:05]} Qe7 {[%emt 0:00:23]} 10. O-O {[%emt 0:00:48]} O-O {[%emt 0:00:24]} 11. a3 {[%emt 0:02:08]} dxc4 {[%emt 0:04:22]} 12. Bxc4 {[%emt 0:00:12]} e5 {[%emt 0:00:05]} 13. Qc2 {[%emt 0:04:02]} exd4 {[%emt 0:02:41]} 14. exd4 {[%emt 0:00:50]} Nb6 {[%emt 0:00:30]} 15. Rfe1 {[%emt 0:02:18]} Qc7 {[%emt 0:00:19]} 16. Ba2 {[%emt 0:00:31]} Bf4 {[%emt 0:00:26]} 17. Ra1 {[%emt 0:03:35]} Bg4 {[%emt 0:02:33]} 18. Ne5 {[%emt 0:01:07]} Bxe5 {[%emt 0:00:20]} 19. Rxe5 {[%emt 0:10:38]} Rae8 {[%emt 0:04:47]} 20. Rae1 {[%emt 0:01:56]} Rxe5 {[%emt 0:00:08]} 21. Rxe5 {[%emt 0:00:34]} Nd7 {[%emt 0:03:44]} 22. Re7 {[%emt 0:11:17]} Qd6 {[%emt 0:00:57]} 23. Qe4 {[%emt 0:04:06]} Bh5 {[%emt 0:05:00]} 24. h3 1/2-1/2

[Event "POL-chT 2 Liga 2019"]
[Site "Poronin"]
[Date "2019.09.14"]
[Round "8.50"]
[White "Kyc, Jerzy"]
[Black "Brozyna, Mateusz"]
[Result "1/2-1/2"]
[ECO "C95"]
[WhiteElo "2309"]
[BlackElo "2194"]
[Annotator "NA"]
[PlyCount "40"]
[EventDate "2019.09.07"]
[EventType "team-tourn"]
[EventCountry "POL"]
[SourceTitle "playchess.com"]
[Source "ChessBase"]
[SourceQuality "1"]
[TimeControl "40/5400+30:1800+30"]

1. e4 {[%emt 0:00:00]} e5 {[%emt 0:00:00]} 2. Nf3 {[%emt 0:00:00]} Nc6 {[%emt 0:00:00]} 3. Bb5 {[%emt 0:00:00]} a6 {[%emt 0:00:00]} 4. Ba4 {[%emt 0:00:00]} Nf6 {[%emt 0:00:19]} 5. O-O {[%emt 0:00:08]} Be7 {[%emt 0:00:07]} 6. Re1 {[%emt 0:00:05]} b5 {[%emt 0:00:05]} 7. Bb3 {[%emt 0:00:02]} d6 {[%emt 0:00:08]} 8. h3 {[%emt 0:00:21]} O-O {[%emt 0:01:58]} 9. c3 {[%emt 0:04:50]} Nb8 {[%emt 0:00:30]} 10. d4 {[%emt 0:00:30]} Nbd7 {[%emt 0:00:00]} 11. Nbd2 {[%emt 0:00:56]} Bb7 {[%emt 0:00:00]} 12. Bc2 {[%emt 0:00:16]} Re8 {[%emt 0:00:00]} 13. Nf1 {[%emt 0:00:10]} Bf8 {[%emt 0:00:02]} 14. Ng3 {[%emt 0:00:09]} g6 {[%emt 0:00:05]} 15. Bd2 {[%emt 0:00:42]} Bg7 {[%emt 0:02:08]} 16. Qc1 {[%emt 0:04:59]} d5 {[%emt 0:06:11]} 17. dxe5 {[%emt 0:02:37]} Nxe4 {[%emt 0:01:21]} 18. Nxe4 {[%emt 0:01:11]} dxe4 {[%emt 0:00:03]} 19. Bg5 {[%emt 0:01:25]} Qc8 {[%emt 0:04:23]} 20. Bxe4 {[%emt 0:00:51]} Nxe5 {[%emt 0:03:43]} 1/2-1/2

[Event "POL-chT 2 Liga 2019"]
[Site "Poronin"]
[Date "2019.09.14"]
[Round "8.51"]
[White "Watorek, Marcin"]
[Black "Gesicki, Jacek"]
[Result "0-1"]
[ECO "A43"]
[WhiteElo "2091"]
[BlackElo "2234"]
[Annotator "NA"]
[PlyCount "100"]
[EventDate "2019.09.07"]
[EventType "team-tourn"]
[EventCountry "POL"]
[SourceTitle "playchess.com"]
[Source "ChessBase"]
[SourceQuality "1"]
[TimeControl "40/5400+30:1800+30"]

1. d4 {[%emt 0:00:00]} Nf6 {[%emt 0:00:00]} 2. c4 {[%emt 0:00:00]} c5 {[%emt 0:00:00]} 3. d5 {[%emt 0:00:06]} d6 {[%emt 0:00:52]} 4. Nc3 {[%emt 0:00:51]} g6 {[%emt 0:00:08]} 5. Nf3 {[%emt 0:02:29]} Bg7 {[%emt 0:00:48]} 6. g3 {[%emt 0:00:14]} O-O {[%emt 0:00:51]} 7. Bg2 {[%emt 0:00:11]} e6 {[%emt 0:01:39]} 8. O-O {[%emt 0:00:14]} exd5 {[%emt 0:00:03]} 9. cxd5 {[%emt 0:00:05]} Re8 {[%emt 0:01:11]} 10. Bf4 {[%emt 0:00:53]} Bf5 {[%emt 0:03:52]} 11. Qb3 {[%emt 0:12:49]} b6 {[%emt 0:23:16]} 12. a3 {[%emt 0:11:26]} Ne4 {[%emt 0:05:21]} 13. Nxe4 {[%emt 0:06:32]} Bxe4 {[%emt 0:00:41]} 14. Nd2 {[%emt 0:07:52]} Bxg2 {[%emt 0:01:33]} 15. Kxg2 {[%emt 0:00:03]} Rxe2 {[%emt 0:01:44]} 16. Nc4 {[%emt 0:00:15]} Re4 {[%emt 0:04:22]} 17. Rfe1 {[%emt 0:06:39]} Rxe1 {[%emt 0:06:08]} 18. Rxe1 {[%emt 0:00:08]} Bf8 {[%emt 0:07:01]} 19. Qb5 {[%emt 0:14:33]} Nd7 {[%emt 0:23:46]} 20. Nxd6 {[%emt 0:03:29]} Ne5 {[%emt 0:00:56]} 21. Bxe5 {[%emt 0:04:53]} Bxd6 {[%emt 0:00:09]} 22. Bc3 {[%emt 0:00:51]} Bf8 {[%emt 0:08:18]} 23. Qd3 {[%emt 0:07:17]} Qd7 {[%emt 0:01:38]} 24. Bf6 {[%emt 0:02:03]} Re8 {[%emt 0:00:25]} 25. Rxe8 {[%emt 0:01:09]} Qxe8 {[%emt 0:00:02]} 26. h4 {[%emt 0:00:43]} h5 {[%emt 0:02:07]} 27. Qf3 {[%emt 0:01:39]} Bd6 {[%emt 0:01:09]} 28. Bc3 {[%emt 0:01:05]} f5 {[%emt 0:01:03]} 29. Qd3 {[%emt 0:02:23]} Kf7 {[%emt 0:01:47]} 30. Qd2 {[%emt 0:00:19]} f4 {[%emt 0:01:46]} 31. Qd3 {[%emt 0:01:11]} Qd7 {[%emt 0:00:21]} 32. Bh8 {[%emt 0:05:45]} fxg3 {[%emt 0:00:56]} 33. fxg3 {[%emt 0:01:32]} Qg4 {[%emt 0:01:22]} 34. Bc3 {[%emt 0:01:47]} a6 {[%emt 0:00:28]} 35. Qf1+ {[%emt 0:00:46]} Kg8 {[%emt 0:00:14]} 36. Qf3 {[%emt 0:01:15]} b5 {[%emt 0:00:53]} 37. Qe3 {[%emt 0:01:31]} Kf7 {[%emt 0:00:58]} 38. b4 {[%emt 0:00:29]} Qf5 {[%emt 0:00:36]} 39. Qf3 {[%emt 0:01:51]} c4 {[%emt 0:00:29]} 40. Bd4 {[%emt 0:00:00]} Qxf3+ {[%emt 0:00:00]} 41. Kxf3 {[%emt 0:01:48]} Be7 {[%emt 0:09:26]} 42. Be3 {[%emt 0:19:32]} Bf6 {[%emt 0:01:45]} 43. Bc1 {[%emt 0:00:04]} Ke7 {[%emt 0:01:25]} 44. Ke4 {[%emt 0:03:03]} Kd7 {[%emt 0:00:31]} 45. a4 {[%emt 0:00:59]} bxa4 {[%emt 0:04:09]} 46. Ba3 {[%emt 0:00:14]} Be7 {[%emt 0:00:16]} 47. Kd4 {[%emt 0:00:45]} a5 {[%emt 0:00:19]} 48. Kxc4 {[%emt 0:00:32]} axb4 {[%emt 0:00:09]} 49. Bc1 {[%emt 0:00:44]} b3 {[%emt 0:00:25]} 50. Kc3 {[%emt 0:01:17]} Bf6+ {[%emt 0:00:11]} 0-1

[Event "POL-chT 2 Liga 2019"]
[Site "Poronin"]
[Date "2019.09.14"]
[Round "8.52"]
[White "Sendera, Jaroslaw"]
[Black "Stanach, Fabian"]
[Result "1-0"]
[ECO "B27"]
[WhiteElo "2203"]
[BlackElo "2038"]
[Annotator "NA"]
[PlyCount "71"]
[EventDate "2019.09.07"]
[EventType "team-tourn"]
[EventCountry "POL"]
[SourceTitle "playchess.com"]
[Source "ChessBase"]
[SourceQuality "1"]
[TimeControl "40/5400+30:1800+30"]

1. e4 {[%emt 0:00:00]} c5 {[%emt 0:00:00]} 2. Nf3 {[%emt 0:00:00]} g6 {[%emt 0:00:37]} 3. d4 {[%emt 0:00:47]} cxd4 {[%emt 0:00:42]} 4. Qxd4 {[%emt 0:00:43]} Nf6 {[%emt 0:00:47]} 5. Nc3 {[%emt 0:10:03]} Nc6 {[%emt 0:04:30]} 6. Qa4 {[%emt 0:00:12]} d6 {[%emt 0:03:40]} 7. e5 {[%emt 0:02:44]} dxe5 {[%emt 0:01:11]} 8. Nxe5 {[%emt 0:00:28]} Bg7 {[%emt 0:02:35]} 9. Bb5 {[%emt 0:03:59]} O-O {[%emt 0:02:07]} 10. Nxc6 {[%emt 0:00:34]} bxc6 {[%emt 0:00:24]} 11. Bxc6 {[%emt 0:00:11]} Bd7 {[%emt 0:03:23]} 12. Bxd7 {[%emt 0:05:36]} Nxd7 {[%emt 0:01:40]} 13. O-O {[%emt 0:00:46]} Nb6 {[%emt 0:05:25]} 14. Qh4 {[%emt 0:04:22]} Bxc3 {[%emt 0:19:31]} 15. bxc3 {[%emt 0:00:09]} Re8 {[%emt 0:10:26]} 16. Bh6 {[%emt 0:02:43]} Qc7 {[%emt 0:15:50]} 17. Rae1 {[%emt 0:07:20]} Rac8 {[%emt 0:03:28]} 18. Re3 {[%emt 0:04:16]} Nd5 {[%emt 0:10:21]} 19. Qd4 {[%emt 0:05:03]} Nf6 {[%emt 0:00:35]} 20. Rfe1 {[%emt 0:00:59]} Qc6 {[%emt 0:04:32]} 21. Rxe7 {[%emt 0:03:20]} Red8 {[%emt 0:01:11]} 22. Qe5 {[%emt 0:05:00]} Qxc3 {[%emt 0:01:53]} 23. Qxc3 {[%emt 0:01:30]} Rxc3 {[%emt 0:00:12]} 24. h3 {[%emt 0:00:32]} Rxc2 {[%emt 0:04:04]} 25. Rxa7 {[%emt 0:00:36]} Nd5 {[%emt 0:01:26]} 26. a4 {[%emt 0:09:09]} Rdc8 {[%emt 0:01:53]} 27. a5 {[%emt 0:00:30]} Ra2 {[%emt 0:00:33]} 28. Re5 {[%emt 0:03:12]} Ra1+ {[%emt 0:00:21]} 29. Kh2 {[%emt 0:00:10]} Rd1 {[%emt 0:00:20]} 30. Rd7 {[%emt 0:02:51]} Ne3 {[%emt 0:00:45]} 31. Rxd1 {[%emt 0:00:11]} Nxd1 {[%emt 0:00:02]} 32. a6 {[%emt 0:00:19]} Ra8 {[%emt 0:00:54]} 33. a7 {[%emt 0:02:15]} f6 {[%emt 0:00:34]} 34. Re7 {[%emt 0:00:11]} Nc3 {[%emt 0:00:29]} 35. Rb7 {[%emt 0:00:49]} Nd5 {[%emt 0:00:13]} 36. Rb8+ {[%emt 0:00:17]} 1-0

[Event "POL-chT 2 Liga 2019"]
[Site "Poronin"]
[Date "2019.09.14"]
[Round "8.53"]
[White "Lach, Piotr"]
[Black "Kopacz, Grzegorz"]
[Result "1/2-1/2"]
[ECO "B31"]
[WhiteElo "2125"]
[BlackElo "2111"]
[Annotator "NA"]
[PlyCount "41"]
[EventDate "2019.09.07"]
[EventType "team-tourn"]
[EventCountry "POL"]
[SourceTitle "playchess.com"]
[Source "ChessBase"]
[SourceQuality "1"]
[TimeControl "40/5400+30:1800+30"]

1. e4 {[%emt 0:00:00]} c5 {[%emt 0:00:00]} 2. Nf3 {[%emt 0:00:00]} Nc6 {[%emt 0:00:13]} 3. Bb5 {[%emt 0:00:01]} g6 {[%emt 0:00:47]} 4. O-O {[%emt 0:01:07]} Bg7 {[%emt 0:00:28]} 5. Re1 {[%emt 0:01:51]} e5 {[%emt 0:05:43]} 6. Bxc6 {[%emt 0:10:45]} dxc6 {[%emt 0:03:44]} 7. d3 {[%emt 0:00:15]} Ne7 {[%emt 0:05:45]} 8. a4 {[%emt 0:01:26]} h6 {[%emt 0:06:04]} 9. Na3 {[%emt 0:01:24]} Be6 {[%emt 0:03:21]} 10. Be3 {[%emt 0:04:33]} b6 {[%emt 0:08:58]} 11. Nc4 {[%emt 0:02:04]} Qc7 {[%emt 0:03:56]} 12. Qd2 {[%emt 0:09:23]} Bxc4 {[%emt 0:08:18]} 13. dxc4 {[%emt 0:00:03]} Rd8 {[%emt 0:00:15]} 14. Qc1 {[%emt 0:04:25]} a5 {[%emt 0:02:24]} 15. h3 {[%emt 0:02:24]} Nc8 {[%emt 0:05:03]} 16. Bd2 {[%emt 0:08:46]} Qe7 {[%emt 0:03:18]} 17. b3 {[%emt 0:05:56]} h5 {[%emt 0:04:35]} 18. Rb1 {[%emt 0:12:04]} O-O {[%emt 0:04:28]} 19. Bh6 Rd7 20. Bd2 f6 21. c3 1/2-1/2

[Event "POL-chT 2 Liga 2019"]
[Site "Poronin"]
[Date "2019.09.14"]
[Round "8.54"]
[White "Trybowska, Barbara"]
[Black "Jedrocha, Katarzyna"]
[Result "1-0"]
[ECO "B94"]
[WhiteElo "1689"]
[BlackElo "1943"]
[Annotator "NA"]
[PlyCount "31"]
[EventDate "2019.09.07"]
[EventType "team-tourn"]
[EventCountry "POL"]
[SourceTitle "playchess.com"]
[Source "ChessBase"]
[SourceQuality "1"]
[TimeControl "40/5400+30:1800+30"]

1. e4 {[%emt 0:00:00]} c5 {[%emt 0:00:00]} 2. Nf3 {[%emt 0:00:00]} d6 {[%emt 0:00:00]} 3. d4 {[%emt 0:00:00]} cxd4 {[%emt 0:00:00]} 4. Nxd4 {[%emt 0:00:00]} Nf6 {[%emt 0:00:00]} 5. Nc3 {[%emt 0:00:00]} a6 {[%emt 0:00:00]} 6. Bg5 {[%emt 0:00:00]} Nbd7 {[%emt 0:00:19]} 7. f4 {[%emt 0:00:29]} Qc7 {[%emt 0:00:16]} 8. Qf3 {[%emt 0:01:35]} b5 {[%emt 0:01:21]} 9. Bxf6 {[%emt 0:05:04]} Nxf6 {[%emt 0:03:42]} 10. e5 {[%emt 0:09:30]} Bb7 {[%emt 0:00:47]} 11. exd6 {[%emt 0:06:35]} Qb6 {[%emt 0:02:08]} 12. Qe3 {[%emt 0:08:21]} e6 {[%emt 0:02:22]} 13. O-O-O {[%emt 0:14:29]} Bxd6 {[%emt 0:05:04]} 14. Ncxb5 {[%emt 0:10:54]} axb5 {[%emt 0:04:38]} 15. Bxb5+ {[%emt 0:00:16]} Kf8 {[%emt 0:01:56]} 16. Nxe6+ {[%emt 0:00:42]} 1-0

[Event "POL-chT 2 Liga 2019"]
[Site "Poronin"]
[Date "2019.09.15"]
[Round "9.1"]
[White "Maciejczak, Jakub"]
[Black "Oglaza, Oskar"]
[Result "1/2-1/2"]
[ECO "B23"]
[WhiteElo "2383"]
[BlackElo "2351"]
[Annotator "ChessBase"]
[PlyCount "21"]
[EventDate "2019.09.07"]
[EventType "team-tourn"]
[EventCountry "POL"]
[SourceTitle "playchess.com"]
[Source "ChessBase"]
[SourceQuality "1"]
[TimeControl "40/5400+30:1800+30"]

1. e4 {[%emt 0:00:00]} c5 {[%emt 0:00:00]} 2. Nc3 {[%emt 0:00:00]} a6 {[%emt 0:00:00]} 3. g3 {[%emt 0:00:57]} b5 {[%emt 0:00:00]} 4. Bg2 {[%emt 0:00:18]} Bb7 {[%emt 0:00:00]} 5. d3 {[%emt 0:01:00]} e6 {[%emt 0:00:00]} 6. Nf3 {[%emt 0:00:43]} d6 {[%emt 0:00:58]} 7. O-O {[%emt 0:00:47]} Nf6 {[%emt 0:00:14]} 8. a4 {[%emt 0:03:32]} b4 {[%emt 0:00:21]} 9. Ne2 {[%emt 0:00:11]} Be7 {[%emt 0:01:15]} 10. b3 {[%emt 0:03:27]} O-O {[%emt 0:03:28]} 11. Bb2 {[%emt 0:00:16]} 1/2-1/2